[Event "Early-Titled-Tuesday-Blitz-September-05-2023"]
[Site "Chess.com"]
[Date "2023.09.05"]
[Round "5"]
[White "Fandorine"]
[Black "Ali_rastbod"]
[Result "0-1"]
[WhiteElo "2913"]
[BlackElo "2687"]
[TimeControl "180+1"]
[EndTime "8:56:40 PDT"]
[Termination "Ali_rastbod won by resignation"]

1. Nf3 {[%clk 0:03:00.9]} 1... d5 {[%clk 0:02:59]} 2. c4 {[%clk 0:02:56.8]} 2...
d4 {[%clk 0:02:59.2]} 3. b4 {[%clk 0:02:56.7]} 3... c5 {[%clk 0:02:55.4]} 4. g3
{[%clk 0:02:55.6]} 4... cxb4 {[%clk 0:02:54]} 5. Bg2 {[%clk 0:02:54.7]} 5... Nc6
{[%clk 0:02:54.1]} 6. a3 {[%clk 0:02:52]} 6... bxa3 {[%clk 0:02:53]} 7. O-O
{[%clk 0:02:52]} 7... e5 {[%clk 0:02:53]} 8. d3 {[%clk 0:02:51.2]} 8... Nf6
{[%clk 0:02:51.1]} 9. Bxa3 {[%clk 0:02:44.9]} 9... Bxa3 {[%clk 0:02:50.9]} 10.
Nxa3 {[%clk 0:02:42.1]} 10... O-O {[%clk 0:02:48.8]} 11. Nd2 {[%clk 0:02:42.7]}
11... Bf5 {[%clk 0:02:31.5]} 12. Qb3 {[%clk 0:02:41.4]} 12... Qe7 {[%clk
0:02:31.4]} 13. Rfb1 {[%clk 0:02:40.2]} 13... Nd8 {[%clk 0:02:12.1]} 14. Nc2
{[%clk 0:02:34.4]} 14... Bg4 {[%clk 0:01:59.1]} 15. Re1 {[%clk 0:02:18.8]} 15...
Qd7 {[%clk 0:01:55]} 16. Qb5 {[%clk 0:02:02.5]} 16... Qc7 {[%clk 0:01:33.7]} 17.
Qa5 {[%clk 0:01:49.4]} 17... Qe7 {[%clk 0:01:30.6]} 18. e3 {[%clk 0:01:27.3]}
18... dxe3 {[%clk 0:01:30.5]} 19. Nxe3 {[%clk 0:01:27.9]} 19... Bd7 {[%clk
0:01:28.6]} 20. Nb3 {[%clk 0:01:18]} 20... Bc6 {[%clk 0:01:25.9]} 21. Nf5 {[%clk
0:01:05.5]} 21... Qd7 {[%clk 0:01:23]} 22. Qxe5 {[%clk 0:01:02.4]} 22... Re8
{[%clk 0:00:59.1]} 23. Bxc6 {[%clk 0:00:22.1]} 23... bxc6 {[%clk 0:00:55.6]} 24.
Qf4 {[%clk 0:00:22.5]} 24... Ne6 {[%clk 0:00:55.3]} 25. Qd6 {[%clk 0:00:18.9]}
25... Rad8 {[%clk 0:00:49.2]} 26. Qxd7 {[%clk 0:00:17.9]} 26... Rxd7 {[%clk
0:00:50.1]} 27. Re3 {[%clk 0:00:13.5]} 27... g6 {[%clk 0:00:40.2]} 28. Nh4
{[%clk 0:00:12.3]} 28... Red8 {[%clk 0:00:40.7]} 29. Nc1 {[%clk 0:00:09.1]}
29... Nc5 {[%clk 0:00:22.3]} 30. Ra3 {[%clk 0:00:08.7]} 30... Rb8 {[%clk
0:00:22.3]} 31. Kg2 {[%clk 0:00:07.6]} 31... Rb2 {[%clk 0:00:17.3]} 32. h3
{[%clk 0:00:06.3]} 32... Kg7 {[%clk 0:00:10.6]} 33. Nf3 {[%clk 0:00:06.1]} 33...
Rdb7 {[%clk 0:00:07.6]} 34. Nd4 {[%clk 0:00:04.6]} 34... Rc7 {[%clk 0:00:04.5]}
35. Nce2 {[%clk 0:00:04.9]} 35... Rb8 {[%clk 0:00:03.8]} 36. Ra5 {[%clk
0:00:04.8]} 36... Ncd7 {[%clk 0:00:02.2]} 37. Nc2 {[%clk 0:00:04.3]} 37... Ra8
{[%clk 0:00:02.7]} 38. Ned4 {[%clk 0:00:04.7]} 38... Nb6 {[%clk 0:00:02.9]} 39.
g4 {[%clk 0:00:04.9]} 39... Nc8 {[%clk 0:00:03]} 40. f4 {[%clk 0:00:05]} 40...
Nd7 {[%clk 0:00:03.7]} 41. Kg3 {[%clk 0:00:05.2]} 41... Kf8 {[%clk 0:00:04.1]}
42. Nf3 {[%clk 0:00:05.6]} 42... Nb8 {[%clk 0:00:03.5]} 43. Ncd4 {[%clk
0:00:05.9]} 43... c5 {[%clk 0:00:03.6]} 44. Nb5 {[%clk 0:00:05.8]} 44... Rb7
{[%clk 0:00:04.1]} 45. g5 {[%clk 0:00:06.5]} 45... Nc6 {[%clk 0:00:04.5]} 46.
Ra6 {[%clk 0:00:07]} 46... Nb4 {[%clk 0:00:05.2]} 47. Ra4 {[%clk 0:00:06.8]}
47... a6 {[%clk 0:00:05.6]} 48. Nc3 {[%clk 0:00:06.1]} 48... Nb6 {[%clk
0:00:05.1]} 49. Ra5 {[%clk 0:00:06.5]} 49... Nd7 {[%clk 0:00:05.6]} 50. Ne5
{[%clk 0:00:06.7]} 50... Nxe5 {[%clk 0:00:05.2]} 51. fxe5 {[%clk 0:00:07.2]}
51... Nc6 {[%clk 0:00:05.5]} 52. Rxc5 {[%clk 0:00:07.5]} 52... Nd4 {[%clk
0:00:06.4]} 53. Re4 {[%clk 0:00:04.2]} 53... Ne6 {[%clk 0:00:06]} 54. Ra5 {[%clk
0:00:03.8]} 54... Nxg5 {[%clk 0:00:06.5]} 55. Re3 {[%clk 0:00:03.4]} 55... Ne6
{[%clk 0:00:06.7]} 56. Nd5 {[%clk 0:00:02.4]} 56... Kg7 {[%clk 0:00:07]} 57. h4
{[%clk 0:00:02.9]} 57... h5 {[%clk 0:00:06.9]} 58. Kf3 {[%clk 0:00:03.5]} 58...
Rb1 {[%clk 0:00:06.9]} 59. Nf6 {[%clk 0:00:03.3]} 59... Rf1+ {[%clk 0:00:06.9]}
60. Ke4 {[%clk 0:00:03.9]} 60... Rh1 {[%clk 0:00:07.3]} 61. Kd5 {[%clk
0:00:03.7]} 61... Rxh4 {[%clk 0:00:07.9]} 62. Ne4 {[%clk 0:00:04.3]} 62... Rh1
{[%clk 0:00:07.1]} 63. d4 {[%clk 0:00:04.4]} 63... Rd8+ {[%clk 0:00:06.6]} 64.
Nd6 {[%clk 0:00:05.1]} 64... Rd1 {[%clk 0:00:07]} 65. Re4 {[%clk 0:00:04.4]}
65... g5 {[%clk 0:00:04.5]} 66. Rxa6 {[%clk 0:00:04.8]} 66... h4 {[%clk
0:00:04.7]} 67. Ra7 {[%clk 0:00:05.4]} 67... Rf8 {[%clk 0:00:03.7]} 68. Kc6
{[%clk 0:00:05.9]} 68... Kg6 {[%clk 0:00:03.9]} 69. d5 {[%clk 0:00:06.3]} 69...
Nd4+ {[%clk 0:00:04.2]} 70. Kc5 {[%clk 0:00:05.6]} 70... Nb3+ {[%clk 0:00:04.8]}
71. Kb4 {[%clk 0:00:06.1]} 71... Nd2 {[%clk 0:00:05.5]} 72. Re2 {[%clk
0:00:04.8]} 72... Nf3 {[%clk 0:00:03.5]} 73. e6 {[%clk 0:00:05.2]} 73... fxe6
{[%clk 0:00:03.8]} 74. Rxe6+ {[%clk 0:00:04.5]} 74... Rf6 {[%clk 0:00:04.5]} 75.
Re4 {[%clk 0:00:05.3]} 75... Rxd6 {[%clk 0:00:03.8]} 76. Kc5 {[%clk 0:00:06.1]}
76... Rf6 {[%clk 0:00:04.1]} 77. Ree7 {[%clk 0:00:05]} 77... Kf5 {[%clk
0:00:03.7]} 78. Rh7 {[%clk 0:00:05]} 78... Kf4 {[%clk 0:00:03.6]} 79. Ra8 {[%clk
0:00:02.1]} 79... g4 {[%clk 0:00:03.5]} 80. Rah8 {[%clk 0:00:02.6]} 80... Kg3
{[%clk 0:00:03.4]} 81. Rg8 {[%clk 0:00:03.5]} 81... Rf4 {[%clk 0:00:03.5]} 82.
Rhg7 {[%clk 0:00:04.1]} 82... Rdd4 {[%clk 0:00:04]} 83. Kb5 {[%clk 0:00:04.2]}
83... Rxc4 {[%clk 0:00:04.5]} 84. d6 {[%clk 0:00:04.9]} 84... Rcd4 {[%clk
0:00:05.2]} 85. Kc6 {[%clk 0:00:04.6]} 85... h3 {[%clk 0:00:05.1]} 86. d7 {[%clk
0:00:04.8]} 86... h2 {[%clk 0:00:04.5]} 87. Kc5 {[%clk 0:00:05.7]} 87... Rxd7
{[%clk 0:00:04.2]} 88. Rxg4+ {[%clk 0:00:06.6]} 88... Rxg4 {[%clk 0:00:04]} 0-1

[Event "Early-Titled-Tuesday-Blitz-September-05-2023"]
[Site "Chess.com"]
[Date "2023.09.05"]
[Round "5"]
[White "Dewarfd"]
[Black "FuenfgegenWilly"]
[Result "0-1"]
[WhiteElo "2141"]
[BlackElo "2304"]
[TimeControl "180+1"]
[EndTime "8:56:51 PDT"]
[Termination "FuenfgegenWilly won by resignation"]

1. d4 {[%clk 0:03:00]} 1... Na6 {[%clk 0:03:00]} 2. e3 {[%clk 0:02:59.2]} 2...
c6 {[%clk 0:03:00.9]} 3. Nf3 {[%clk 0:02:59.2]} 3... d5 {[%clk 0:03:00.4]} 4. c4
{[%clk 0:02:58.8]} 4... Bg4 {[%clk 0:02:58.2]} 5. h3 {[%clk 0:02:56.8]} 5...
Bxf3 {[%clk 0:02:58.1]} 6. Qxf3 {[%clk 0:02:57.2]} 6... Nf6 {[%clk 0:02:55.8]}
7. a3 {[%clk 0:02:56.6]} 7... Ne4 {[%clk 0:02:50.5]} 8. Nc3 {[%clk 0:02:54.1]}
8... Nxc3 {[%clk 0:02:50.2]} 9. bxc3 {[%clk 0:02:54]} 9... Nc7 {[%clk
0:02:48.5]} 10. cxd5 {[%clk 0:02:51.4]} 10... cxd5 {[%clk 0:02:48.4]} 11. c4
{[%clk 0:02:49.4]} 11... e6 {[%clk 0:02:48.2]} 12. Bd3 {[%clk 0:02:43]} 12...
Be7 {[%clk 0:02:47.8]} 13. O-O {[%clk 0:02:42]} 13... O-O {[%clk 0:02:47.7]} 14.
e4 {[%clk 0:02:41.9]} 14... dxc4 {[%clk 0:02:47.1]} 15. Bxc4 {[%clk 0:02:34.7]}
15... Qxd4 {[%clk 0:02:47]} 16. Qb3 {[%clk 0:02:16.5]} 16... b5 {[%clk
0:02:39.4]} 17. Bd3 {[%clk 0:02:07.4]} 17... Rfd8 {[%clk 0:02:35.1]} 18. Bc2
{[%clk 0:02:06.8]} 18... Qxa1 {[%clk 0:02:21.4]} 19. Bb2 {[%clk 0:02:03.8]}
19... Qxf1+ {[%clk 0:02:21.3]} 20. Kxf1 {[%clk 0:02:04.5]} 20... a5 {[%clk
0:02:21.9]} 21. Be5 {[%clk 0:02:00]} 21... Ne8 {[%clk 0:02:21.1]} 22. Qxb5
{[%clk 0:01:56]} 22... Rdc8 {[%clk 0:02:20.5]} 23. Ba4 {[%clk 0:01:50]} 23...
Bxa3 {[%clk 0:02:18.3]} 24. Qb3 {[%clk 0:01:38.5]} 24... Bd6 {[%clk 0:02:17.5]}
25. Bd4 {[%clk 0:01:22.9]} 25... Bf8 {[%clk 0:02:12.9]} 26. g3 {[%clk
0:01:17.6]} 26... Nd6 {[%clk 0:02:10.8]} 27. Qd3 {[%clk 0:01:15.1]} 27... Nc4
{[%clk 0:02:06.9]} 28. Bd7 {[%clk 0:01:09.5]} 28... Rc7 {[%clk 0:02:04.4]} 29.
Bb5 {[%clk 0:01:06]} 29... Rac8 {[%clk 0:02:03.4]} 30. Kg2 {[%clk 0:01:03.7]}
30... Nd6 {[%clk 0:01:54.5]} 31. Ba4 {[%clk 0:00:54.8]} 31... Rc4 {[%clk
0:01:51.5]} 32. Bb3 {[%clk 0:00:52.6]} 32... Rb4 {[%clk 0:01:51.7]} 33. Ba2
{[%clk 0:00:44.6]} 33... a4 {[%clk 0:01:47.6]} 34. e5 {[%clk 0:00:38.7]} 34...
Nb5 {[%clk 0:01:42.4]} 35. Ba1 {[%clk 0:00:30.9]} 35... a3 {[%clk 0:01:38.2]}
36. Qd7 {[%clk 0:00:22.7]} 36... Rb8 {[%clk 0:01:36.9]} 37. Bxe6 {[%clk
0:00:21.9]} 37... fxe6 {[%clk 0:01:33.3]} 38. Qxe6+ {[%clk 0:00:22.8]} 38... Kh8
{[%clk 0:01:33.6]} 39. Qd7 {[%clk 0:00:22.9]} 39... a2 {[%clk 0:01:16.7]} 40. e6
{[%clk 0:00:22.9]} 40... Rb1 {[%clk 0:01:14.5]} 41. e7 {[%clk 0:00:22.9]} 41...
Rxa1 {[%clk 0:00:59.6]} 42. e8=Q {[%clk 0:00:18.8]} 42... Rxe8 {[%clk
0:00:48.1]} 43. Qxe8 {[%clk 0:00:19.3]} 43... Kg8 {[%clk 0:00:40.2]} 44. Qe6+
{[%clk 0:00:19.1]} 44... Kh8 {[%clk 0:00:40.5]} 45. Qf7 {[%clk 0:00:17.6]} 45...
h6 {[%clk 0:00:17]} 46. Qxf8+ {[%clk 0:00:17.6]} 46... Kh7 {[%clk 0:00:17.1]}
47. Qf5+ {[%clk 0:00:18.1]} 47... Kh8 {[%clk 0:00:16.9]} 48. Qf8+ {[%clk
0:00:15.9]} 48... Kh7 {[%clk 0:00:17.3]} 49. Qa8 {[%clk 0:00:11.6]} 49... Nc3
{[%clk 0:00:15.8]} 50. Qf8 {[%clk 0:00:06.9]} 50... Rg1+ {[%clk 0:00:10.8]} 51.
Kxg1 {[%clk 0:00:07.1]} 51... a1=Q+ {[%clk 0:00:10.8]} 52. Kg2 {[%clk
0:00:06.6]} 52... Qb1 {[%clk 0:00:10.9]} 53. Qf3 {[%clk 0:00:05.3]} 53... Qe4
{[%clk 0:00:09.9]} 54. g4 {[%clk 0:00:05.3]} 54... Kg6 {[%clk 0:00:09.3]} 55. h4
{[%clk 0:00:04.9]} 55... Qxf3+ {[%clk 0:00:07.2]} 56. Kxf3 {[%clk 0:00:05.4]}
56... Nd5 {[%clk 0:00:07.8]} 57. Ke4 {[%clk 0:00:05.4]} 57... Nf6+ {[%clk
0:00:07.8]} 58. Kf4 {[%clk 0:00:04.5]} 58... Nd7 {[%clk 0:00:08.1]} 59. f3
{[%clk 0:00:04.2]} 59... Kf7 {[%clk 0:00:05.9]} 60. Kf5 {[%clk 0:00:04.5]} 60...
g6+ {[%clk 0:00:06.4]} 61. Ke4 {[%clk 0:00:04.7]} 61... Ke6 {[%clk 0:00:06.8]}
62. f4 {[%clk 0:00:03.9]} 62... Nc5+ {[%clk 0:00:04.5]} 63. Kd4 {[%clk
0:00:04.2]} 63... Nd7 {[%clk 0:00:04]} 64. Ke4 {[%clk 0:00:04.7]} 64... Nf6+
{[%clk 0:00:03.7]} 65. Kf3 {[%clk 0:00:04.7]} 65... Kf7 {[%clk 0:00:02.5]} 66.
f5 {[%clk 0:00:04]} 66... g5 {[%clk 0:00:02.7]} 67. hxg5 {[%clk 0:00:02.7]}
67... hxg5 {[%clk 0:00:03.6]} 68. Kg3 {[%clk 0:00:03.1]} 68... Ke7 {[%clk
0:00:04]} 69. Kf3 {[%clk 0:00:04]} 69... Kd6 {[%clk 0:00:04.8]} 70. Kg3 {[%clk
0:00:04.5]} 70... Ke5 {[%clk 0:00:05.4]} 71. Kf3 {[%clk 0:00:05.1]} 71... Kd4
{[%clk 0:00:06]} 72. Ke2 {[%clk 0:00:03.8]} 72... Ke4 {[%clk 0:00:06.9]} 73. Kd2
{[%clk 0:00:04.6]} 73... Kf4 {[%clk 0:00:07.8]} 74. Kd3 {[%clk 0:00:05.1]} 74...
Kxg4 {[%clk 0:00:08.7]} 75. Kd4 {[%clk 0:00:05.9]} 75... Kxf5 {[%clk 0:00:09.6]}
76. Ke3 {[%clk 0:00:06.1]} 76... g4 {[%clk 0:00:10.5]} 77. Kf2 {[%clk 0:00:07]}
77... Kg5 {[%clk 0:00:11]} 78. Kg3 {[%clk 0:00:07.9]} 78... Kf5 {[%clk
0:00:11.5]} 79. Kf2 {[%clk 0:00:08.7]} 79... Kf4 {[%clk 0:00:12.4]} 80. Kg2
{[%clk 0:00:09.4]} 80... g3 {[%clk 0:00:13.3]} 81. Kg1 {[%clk 0:00:09.7]} 81...
Kg4 {[%clk 0:00:14.2]} 82. Kg2 {[%clk 0:00:10.4]} 82... Kf4 {[%clk 0:00:14.2]}
83. Kh1 {[%clk 0:00:11.3]} 83... Kf3 {[%clk 0:00:14.4]} 84. Kg1 {[%clk
0:00:11.9]} 84... g2 {[%clk 0:00:13.5]} 85. Kh2 {[%clk 0:00:10.7]} 85... Ne8
{[%clk 0:00:12.6]} 86. Kg1 {[%clk 0:00:11.1]} 86... Nc7 {[%clk 0:00:12.8]} 87.
Kh2 {[%clk 0:00:11.6]} 87... Kf2 {[%clk 0:00:13.2]} 88. Kh3 {[%clk 0:00:11.7]}
88... g1=Q {[%clk 0:00:13.8]} 89. Kh4 {[%clk 0:00:11.7]} 89... Qg6 {[%clk
0:00:13.9]} 0-1

[Event "Early-Titled-Tuesday-Blitz-September-05-2023"]
[Site "Chess.com"]
[Date "2023.09.05"]
[Round "5"]
[White "vladgoncharov"]
[Black "mitrabhaa"]
[Result "1/2-1/2"]
[WhiteElo "2552"]
[BlackElo "2818"]
[TimeControl "180+1"]
[EndTime "8:56:57 PDT"]
[Termination "Game drawn - timeout vs insufficient material"]

1. d4 {[%clk 0:03:00.9]} 1... Nf6 {[%clk 0:02:55.7]} 2. c4 {[%clk 0:03:00.5]}
2... e6 {[%clk 0:02:53.6]} 3. Nc3 {[%clk 0:03:00.1]} 3... Bb4 {[%clk 0:02:52.3]}
4. e3 {[%clk 0:03:00.3]} 4... O-O {[%clk 0:02:51.9]} 5. Bd3 {[%clk 0:03:00.1]}
5... c5 {[%clk 0:02:51]} 6. Ne2 {[%clk 0:02:50.6]} 6... d5 {[%clk 0:02:49.6]} 7.
a3 {[%clk 0:02:45.5]} 7... Bxc3+ {[%clk 0:02:49.2]} 8. bxc3 {[%clk 0:02:43.6]}
8... dxc4 {[%clk 0:02:49.2]} 9. Bxc4 {[%clk 0:02:43.5]} 9... Qc7 {[%clk
0:02:49.6]} 10. Bd3 {[%clk 0:02:34.8]} 10... e5 {[%clk 0:02:47.5]} 11. O-O
{[%clk 0:02:20]} 11... e4 {[%clk 0:02:46.2]} 12. Bc2 {[%clk 0:02:18.5]} 12...
Bg4 {[%clk 0:02:44.3]} 13. f3 {[%clk 0:02:14.7]} 13... exf3 {[%clk 0:02:39.9]}
14. gxf3 {[%clk 0:02:14.5]} 14... Bh5 {[%clk 0:02:38.7]} 15. Qe1 {[%clk
0:02:05.5]} 15... Nc6 {[%clk 0:02:36.7]} 16. Qg3 {[%clk 0:01:58.7]} 16... Qa5
{[%clk 0:02:34]} 17. Qg5 {[%clk 0:01:41.1]} 17... cxd4 {[%clk 0:02:28]} 18. Qxa5
{[%clk 0:01:40.1]} 18... Nxa5 {[%clk 0:02:28.9]} 19. cxd4 {[%clk 0:01:39.3]}
19... Rac8 {[%clk 0:02:28.6]} 20. Bf5 {[%clk 0:01:34.4]} 20... Rc7 {[%clk
0:02:25.5]} 21. Rb1 {[%clk 0:01:32.2]} 21... b6 {[%clk 0:02:21]} 22. Bd2 {[%clk
0:01:21.7]} 22... Nc4 {[%clk 0:02:19.2]} 23. Bc1 {[%clk 0:01:20.3]} 23... Nd5
{[%clk 0:02:15.5]} 24. Kf2 {[%clk 0:01:19.1]} 24... Nd6 {[%clk 0:02:10.3]} 25.
Bd3 {[%clk 0:01:17.3]} 25... f5 {[%clk 0:02:07.8]} 26. Bd2 {[%clk 0:01:13]}
26... Ne4+ {[%clk 0:02:01.6]} 27. Ke1 {[%clk 0:01:06.8]} 27... Nd6 {[%clk
0:01:49.9]} 28. Kf2 {[%clk 0:00:50.1]} 28... Rcc8 {[%clk 0:01:43.2]} 29. Rfc1
{[%clk 0:00:48.7]} 29... Ne4+ {[%clk 0:01:42.3]} 30. Bxe4 {[%clk 0:00:43.5]}
30... fxe4 {[%clk 0:01:34.2]} 31. Rxc8 {[%clk 0:00:42.3]} 31... Rxc8 {[%clk
0:01:33.9]} 32. fxe4 {[%clk 0:00:42.1]} 32... Rc2 {[%clk 0:01:34.4]} 33. exd5
{[%clk 0:00:27.1]} 33... Rxd2 {[%clk 0:01:34.4]} 34. Re1 {[%clk 0:00:27.8]}
34... Kf7 {[%clk 0:01:25.3]} 35. Kf1 {[%clk 0:00:27.7]} 35... Bf3 {[%clk
0:01:21.2]} 36. Nf4 {[%clk 0:00:26.4]} 36... g5 {[%clk 0:01:19.5]} 37. Ne6
{[%clk 0:00:23.3]} 37... h6 {[%clk 0:01:18.7]} 38. e4 {[%clk 0:00:23.4]} 38...
Rxh2 {[%clk 0:01:17.8]} 39. Nd8+ {[%clk 0:00:22.1]} 39... Ke8 {[%clk 0:01:17.5]}
40. Nc6 {[%clk 0:00:22.6]} 40... g4 {[%clk 0:01:13.6]} 41. Re3 {[%clk
0:00:20.3]} 41... Rd2 {[%clk 0:00:55.7]} 42. Ne5 {[%clk 0:00:19.8]} 42... Rxd4
{[%clk 0:00:54.7]} 43. Nxf3 {[%clk 0:00:20]} 43... gxf3 {[%clk 0:00:54.8]} 44.
Kf2 {[%clk 0:00:20.5]} 44... Ke7 {[%clk 0:00:52.1]} 45. Kxf3 {[%clk 0:00:20.9]}
45... Kd6 {[%clk 0:00:51.5]} 46. Kf4 {[%clk 0:00:21.3]} 46... Rd2 {[%clk
0:00:50.6]} 47. Rh3 {[%clk 0:00:21.8]} 47... Rf2+ {[%clk 0:00:36.3]} 48. Ke3
{[%clk 0:00:21.7]} 48... Ra2 {[%clk 0:00:36.9]} 49. Rxh6+ {[%clk 0:00:21]} 49...
Kc5 {[%clk 0:00:37.1]} 50. Rc6+ {[%clk 0:00:20.8]} 50... Kb5 {[%clk 0:00:37.6]}
51. Rc3 {[%clk 0:00:21]} 51... Ra1 {[%clk 0:00:37]} 52. d6 {[%clk 0:00:21.3]}
52... Rd1 {[%clk 0:00:36.9]} 53. Rd3 {[%clk 0:00:21.2]} 53... Re1+ {[%clk
0:00:36.3]} 54. Kd4 {[%clk 0:00:20.9]} 54... Kc6 {[%clk 0:00:36]} 55. Ke5 {[%clk
0:00:20.9]} 55... Kd7 {[%clk 0:00:35.1]} 56. Kd5 {[%clk 0:00:21.1]} 56... Rc1
{[%clk 0:00:35.6]} 57. e5 {[%clk 0:00:21.3]} 57... Rc5+ {[%clk 0:00:36.1]} 58.
Ke4 {[%clk 0:00:21.1]} 58... Rc4+ {[%clk 0:00:33.2]} 59. Kf5 {[%clk 0:00:21.3]}
59... Rc5 {[%clk 0:00:33.1]} 60. Kf6 {[%clk 0:00:21.5]} 60... Rc1 {[%clk
0:00:33.4]} 61. e6+ {[%clk 0:00:21.7]} 61... Kd8 {[%clk 0:00:34.1]} 62. e7+
{[%clk 0:00:16]} 62... Kd7 {[%clk 0:00:33.9]} 63. Re3 {[%clk 0:00:15.7]} 63...
Rf1+ {[%clk 0:00:33.7]} 64. Kg5 {[%clk 0:00:15.6]} 64... Rg1+ {[%clk 0:00:33.9]}
65. Kf4 {[%clk 0:00:14.7]} 65... Rf1+ {[%clk 0:00:32.4]} 66. Ke5 {[%clk
0:00:14.8]} 66... Rd1 {[%clk 0:00:26.9]} 67. Re4 {[%clk 0:00:12.1]} 67... b5
{[%clk 0:00:21.5]} 68. Kf5 {[%clk 0:00:10.2]} 68... Rf1+ {[%clk 0:00:16.9]} 69.
Rf4 {[%clk 0:00:09.6]} 69... Re1 {[%clk 0:00:15.9]} 70. Re4 {[%clk 0:00:09.3]}
70... Rf1+ {[%clk 0:00:15.9]} 71. Ke5 {[%clk 0:00:09.7]} 71... Rd1 {[%clk
0:00:14.9]} 72. Rd4 {[%clk 0:00:10]} 72... Re1+ {[%clk 0:00:14.6]} 73. Kd5
{[%clk 0:00:10.3]} 73... Rc1 {[%clk 0:00:14.4]} 74. Re4 {[%clk 0:00:08.7]} 74...
Rc8 {[%clk 0:00:10.1]} 75. e8=Q+ {[%clk 0:00:06.8]} 75... Rxe8 {[%clk
0:00:10.2]} 76. Rxe8 {[%clk 0:00:07.4]} 76... Kxe8 {[%clk 0:00:11.1]} 77. Kc6
{[%clk 0:00:07.8]} 77... Kd8 {[%clk 0:00:07.8]} 78. Kxb5 {[%clk 0:00:07.9]}
78... Kd7 {[%clk 0:00:08.1]} 79. Kc5 {[%clk 0:00:08.5]} 79... a5 {[%clk
0:00:07.9]} 80. Kd5 {[%clk 0:00:05.1]} 80... a4 {[%clk 0:00:07.6]} 81. Kc5
{[%clk 0:00:05]} 81... Kd8 {[%clk 0:00:07.7]} 82. Kc6 {[%clk 0:00:04.7]} 82...
Kc8 {[%clk 0:00:08.1]} 83. Kb5 {[%clk 0:00:04.7]} 83... Kd7 {[%clk 0:00:08.4]}
84. Kxa4 {[%clk 0:00:04.2]} 84... Kxd6 {[%clk 0:00:08.8]} 85. Kb5 {[%clk
0:00:04.2]} 85... Kc7 {[%clk 0:00:09.7]} 86. Ka6 {[%clk 0:00:04.1]} 86... Kb8
{[%clk 0:00:10.6]} 87. a4 {[%clk 0:00:04.8]} 87... Ka8 {[%clk 0:00:11.5]} 88.
Kb6 {[%clk 0:00:05.7]} 88... Kb8 {[%clk 0:00:11.9]} 89. a5 {[%clk 0:00:06.6]}
89... Ka8 {[%clk 0:00:12.8]} 90. a6 {[%clk 0:00:07.5]} 90... Kb8 {[%clk
0:00:13.7]} 91. a7+ {[%clk 0:00:08.1]} 91... Ka8 {[%clk 0:00:14.6]} 1/2-1/2